bitfinex/quotes_SOLUSD_20250718
["timestamp","ask_amount","ask_price","bid_price","bid_amount"]
[1752824022810,17.29574016,184.0,183.96,29.27]
[1752824023010,5.43432554,184.02,183.96,29.27]
[1752824023011,17.29574016,183.99,183.97,0.71]
[1752824023313,17.29574016,183.98,183.96,0.03]
[1752824023499,17.29574016,183.97,183.96,0.03]
[1752824024195,22.73140901,183.97,183.96,0.03]
[1752824027800,23.42140901,183.97,183.96,0.03]
[1752824028009,5.43515187,183.99,183.96,0.03]
[1752824028414,22.73089203,183.99,183.96,0.03]
[1752824028592,17.29574016,183.97,183.96,0.03]
[1752824028917,17.29574016,183.98,183.96,0.03]
[1752824029211,11.60822109,183.97,183.96,0.03]
[1752824030007,5.43515187,183.99,183.96,0.03]
[1752824030215,11.60822109,183.97,183.96,0.03]
[1752824030425,17.04388994,183.97,183.96,0.03]
[1752824031436,5.43566885,183.97,183.96,0.03]
[1752824031731,11.60822109,183.99,183.96,0.74]
[1752824032407,17.04333367,183.99,183.96,0.74]
[1752824033110,11.60822109,183.98,183.96,0.03]
[1752824033327,11.60822109,183.97,183.96,0.03]
[1752824033935,0.69,183.98,183.96,0.03]
[1752824034112,11.60822109,183.97,183.96,0.03]
[1752824034514,17.04388994,183.97,183.96,0.03]
[1752824035331,60.51857391,183.97,183.96,0.03]
[1752824038225,60.51857391,183.97,183.96,1e-08]
[1752824040334,34.51857391,183.97,183.96,1e-08]
[1752824040509,34.51857391,183.97,183.89,0.71]
[1752824040510,26.0,183.94,183.87,29.08]
[1752824040709,11.60822109,183.88,183.83,6.985]
[1752824040918,26.0,183.82,183.81,0.03]
[1752824041123,26.0,183.82,183.77,0.03]
[1752824041124,26.0,183.78,183.77,0.03]
[1752824041316,37.60822109,183.78,183.77,0.03]
[1752824041525,38.29822109,183.78,183.77,0.03]
[1752824041831,55.08290506,183.78,183.77,0.03]
[1752824042010,16.78468397,183.77,183.76,0.03]
[1752824042211,34.52448964,183.77,183.76,1e-08]
[1752824042510,34.52448964,183.77,183.72,0.2]
[1752824042726,55.08290506,183.76,183.72,0.2]
[1752824042912,84.16290506,183.76,183.72,0.2]
[1752824044029,42.78468397,183.76,183.72,0.2]
[1752824044228,54.39290506,183.76,183.72,0.2]
[1752824044428,59.83478577,183.76,183.72,0.2]
[1752824044632,89.66478577,183.76,183.72,0.2]
[1752824044815,16.78468397,183.75,183.72,0.2]
[1752824045017,26.0,183.73,183.72,0.2]
[1752824045210,37.60822109,183.73,183.72,0.2]
[1752824045413,38.29822109,183.73,183.72,0.2]
[1752824046114,66.69112615,183.73,183.72,1e-08]
[1752824046428,72.13389543,183.73,183.72,1e-08]
[1752824047331,72.13389543,183.73,183.7,0.03]
[1752824047332,16.78468397,183.72,183.7,0.03]
[1752824047532,11.60822109,183.71,183.7,0.03]
[1752824047837,0.69,183.72,183.7,0.03]
[1752824048140,28.39290506,183.71,183.7,0.03]
[1752824048728,33.83626688,183.71,183.7,0.03]
[1752824049328,22.22804579,183.71,183.7,0.03]
[1752824049639,5.44310831,183.72,183.7,0.03]
[1752824049843,16.78468397,183.78,183.7,0.74]
[1752824050138,11.60822109,183.72,183.7,0.03]
[1752824050445,11.60822109,183.71,183.7,0.03]
[1752824050615,17.05158291,183.71,183.7,0.03]
[1752824051010,11.60822109,183.71,183.7,0.03]
[1752824051235,11.60822109,183.72,183.7,0.74]
[1752824052251,5.44251816,183.74,183.7,0.74]
[1752824052552,37.60822109,183.74,183.71,0.71]
[1752824052723,37.60822109,183.74,183.72,0.71]
[1752824053048,11.60822109,183.73,183.7,0.03]
[1752824053347,11.60822109,183.73,183.71,0.71]
[1752824053523,11.60822109,183.72,183.7,0.03]
[1752824053721,28.39290506,183.71,183.7,0.03]
[1752824053919,16.78468397,183.7,183.68,0.03]
[1752824054139,28.39290506,183.69,183.68,0.03]
[1752824054435,29.08290506,183.69,183.68,0.03]
[1752824054625,34.52685954,183.69,183.68,1e-08]
[1752824054827,16.78468397,183.67,183.66,0.2]
[1752824055025,57.53290506,183.67,183.66,1e-08]
[1752824055228,58.22290506,183.67,183.66,1e-08]
[1752824056244,42.78468397,183.63,183.62,0.2]
[1752824056541,54.39290506,183.63,183.62,0.2]
[1752824056719,60.52863832,183.63,183.62,1e-08]
[1752824057618,74.14297148,183.63,183.59,0.2]
[1752824057833,11.60822109,183.6,183.59,0.2]
[1752824058836,17.05484418,183.6,183.59,0.2]
[1752824059745,11.60822109,183.6,183.59,0.2]
[1752824059945,28.39290506,183.6,183.59,0.2]
[1752824060538,55.08290506,183.6,183.59,0.2]
[1752824060839,90.52952815,183.6,183.59,0.2]
[1752824061019,84.39290506,183.6,183.59,0.2]
[1752824061644,54.39290506,183.6,183.59,0.2]
[1752824062739,60.52952815,183.6,183.59,0.2]
[1752824063744,54.39290506,183.6,183.59,0.2]
[1752824064053,59.83952815,183.6,183.59,0.2]
[1752824064651,89.83952815,183.6,183.59,0.2]
[1752824065445,30.0,183.6,183.59,0.2]
[1752824065647,28.13,183.6,183.59,17.96514085]
[1752824065945,11.60822109,183.69,183.6,6.5572]
[1752824066149,11.60822109,183.68,183.6,6.5572]
[1752824066454,17.47468397,183.73,183.65,11.60822109]
[1752824066626,11.60822109,183.71,183.65,11.60822109]
[1752824066828,11.60822109,183.71,183.6,6.5572]
[1752824067027,11.60822109,183.71,183.65,5.44501598]
[1752824067754,30.0,183.66,183.65,17.05323707]
[1752824068555,11.60822109,183.71,183.65,17.05323707]
[1752824068732,11.60822109,183.7,183.64,17.05360456]
[1752824069053,16.78468397,183.69,183.61,11.60822109]
[1752824069234,11.60822109,183.68,183.62,11.60822109]
[1752824070150,11.60822109,183.67,183.61,11.60822109]
[1752824070456,16.78468397,183.69,183.63,11.60822109]
[1752824070774,0.69,183.7,183.64,11.60822109]
[1752824070951,11.60822109,183.7,183.64,11.60822109]
[1752824071159,11.60822109,183.69,183.63,11.60822109]
[1752824071652,11.60822109,183.67,183.61,17.05454754]
[1752824072258,12.29822109,183.68,183.62,11.60822109]
[1752824072750,11.60822109,183.63,183.59,0.2]
[1752824072952,11.60822109,183.6,183.59,0.2]
[1752824073458,12.29822109,183.6,183.59,0.2]
[1752824073658,11.60822109,183.6,183.59,0.2]
[1752824073847,11.60822109,183.62,183.59,0.2]
[1752824074046,11.60822109,183.64,183.59,5.64688885]
[1752824074235,13.60877264,183.71,183.59,5.64688885]
[1752824074236,0.69,183.69,183.63,11.60822109]
[1752824074435,11.60822109,183.7,183.59,60.78688885]
[1752824074651,11.60822109,183.7,183.64,11.60822109]
[1752824074847,11.60822109,183.66,183.6,11.60822109]
[1752824075537,0.69,183.67,183.61,11.60822109]
[1752824075749,16.78468397,183.69,183.62,11.60822109]
[1752824075958,11.60822109,183.68,183.62,11.60822109]
[1752824076262,26.0,183.7,183.64,11.60822109]
[1752824076450,11.60822109,183.67,183.62,1.5896]
[1752824077059,12.29822109,183.67,183.62,1.5896]
[1752824077440,11.60822109,183.64,183.59,0.2]
[1752824077639,11.60822109,183.63,183.59,0.2]
[1752824077853,11.60822109,183.64,183.59,5.64685813]
[1752824078248,0.69,183.66,183.6,11.60822109]
[1752824078440,12.29822109,183.66,183.6,11.60822109]
[1752824078640,11.60822109,183.66,183.6,11.60822109]
[1752824078854,11.60822109,183.67,183.61,11.60822109]
[1752824079049,17.05277257,183.67,183.61,11.60822109]
[1752824079263,11.60822109,183.65,183.59,17.25507922]
[1752824080255,17.05340974,183.65,183.59,17.25507922]
[1752824080558,11.60822109,183.62,183.59,0.2]
[1752824080763,0.69,183.64,183.59,0.2]
[1752824080959,12.29822109,183.64,183.59,0.2]
[1752824081461,12.29822109,183.64,183.59,5.64688142]
[1752824081958,6.13395448,183.69,183.61,11.60822109]
[1752824082168,16.78468397,183.68,183.63,11.60822109]
[1752824082341,33.83721899,183.68,183.62,46.27413781]
[1752824082544,0.69,183.68,183.62,46.27413781]
[1752824082744,12.29822109,183.71,183.65,11.60822109]
[1752824083042,17.74165299,183.71,183.65,11.60822109]
[1752824083246,11.60822109,183.7,183.64,11.60822109]
[1752824083949,6.1334319,183.71,183.65,11.60822109]
[1752824084267,12.29822109,183.71,183.65,17.0531301]
[1752824084866,11.60822109,183.71,183.65,23.4644301]
[1752824085068,17.05164537,183.71,183.65,23.4644301]
[1752824085251,17.05164537,183.71,183.65,18.01952109]
[1752824085451,11.60822109,183.7,183.65,6.4113]
[1752824085953,12.29822109,183.7,183.65,6.4113]
[1752824086357,17.74194194,183.7,183.65,6.4113]
[1752824087672,0.69,183.72,183.65,11.85643778]
[1752824087855,0.69,183.72,183.67,11.60822109]
[1752824088173,0.69,183.72,183.67,40.80822109]
[1752824088351,0.69,183.72,183.67,29.2]
[1752824088664,12.29822109,183.72,183.67,29.2]
[1752824088972,17.74133215,183.72,183.67,29.2]
[1752824089150,12.29822109,183.72,183.67,34.64453271]
[1752824089555,17.74131842,183.72,183.67,29.2]
[1752824090565,12.29822109,183.71,183.67,29.2]
[1752824090873,12.29822109,183.71,183.66,36.15915726]
[1752824091365,11.60822109,183.7,183.66,29.18]
[1752824091573,5.44355473,183.71,183.66,29.18]
[1752824091574,11.60822109,183.69,183.66,29.18]
[1752824091872,16.78468397,183.66,183.6,6.6926]
[1752824092059,11.60822109,183.64,183.6,35.8526]
[1752824092454,11.60822109,183.62,183.6,35.8526]
[1752824092772,11.60822109,183.61,183.6,29.19]
[1752824092960,17.71454754,183.61,183.6,29.19]
[1752824093167,17.71454754,183.61,183.6,0.03]
[1752824093353,34.49923151,183.61,183.6,0.03]
[1752824093975,22.89101042,183.61,183.6,0.03]
[1752824094282,34.49923151,183.61,183.6,0.03]
[1752824096047,28.39290506,183.6,183.59,0.2]
[1752824096252,55.05290506,183.6,183.58,0.03]
[1752824096448,16.78468397,183.58,183.55,0.2]
[1752824096666,54.39290506,183.56,183.55,0.2]
[1752824097256,55.05290506,183.56,183.55,0.2]
[1752824097646,60.50071504,183.56,183.55,0.2]
[1752824098168,48.89249395,183.56,183.55,0.2]
[1752824098352,0.66,183.59,183.55,0.2]
[1752824098554,11.60822109,183.56,183.55,0.2]
[1752824098780,12.26822109,183.56,183.55,0.2]
[1752824099354,55.05290506,183.56,183.55,0.2]
[1752824099558,42.78468397,183.54,183.51,1e-08]
[1752824099768,59.84130867,183.54,183.51,1e-08]
[1752824099967,60.50130867,183.54,183.51,1e-08]
[1752824100865,42.78468397,183.52,183.51,1e-08]
[1752824101085,54.39290506,183.52,183.51,1e-08]
[1752824101291,55.05290506,183.52,183.51,1e-08]
[1752824101667,29.05290506,183.52,183.51,1e-08]
[1752824101983,11.60822109,183.52,183.51,1e-08]
[1752824102175,17.71721847,183.52,183.51,1e-08]
[1752824103179,28.39290506,183.52,183.51,1e-08]
[1752824103378,11.60822109,183.52,183.51,1e-08]
[1752824103688,11.60822109,183.53,183.51,1e-08]
[1752824103865,11.60822109,183.52,183.51,1e-08]
[1752824104281,11.60822109,183.54,183.51,1e-08]
[1752824104580,11.60822109,183.56,183.51,0.47000001]
[1752824104781,11.60822109,183.55,183.51,0.47000001]
[1752824104986,11.60822109,183.56,183.51,0.47000001]
[1752824105188,11.60822109,183.56,183.51,12.0782211]
[1752824105487,28.39290506,183.6,183.54,11.60822109]
[1752824105990,11.60822109,183.59,183.53,11.60822109]
[1752824106168,22.23135817,183.6,183.53,11.60822109]
[1752824106169,16.78468397,183.6,183.53,17.05692157]
[1752824106371,11.60822109,183.59,183.53,17.05692157]
[1752824106770,33.83962643,183.6,183.53,17.05692157]
[1752824107078,11.60822109,183.58,183.52,13.12412109]
[1752824107285,11.60822109,183.59,183.53,11.60822109]
[1752824108092,11.60822109,183.59,183.53,17.05675636]
[1752824108311,11.60822109,183.58,183.53,5.44853527]
[1752824108793,11.60822109,183.59,183.53,17.05675636]
[1752824108994,11.60822109,183.59,183.53,17.52675636]
[1752824109296,17.05517729,183.59,183.53,17.52675636]
[1752824109591,17.71517729,183.59,183.53,5.44853527]
[1752824109799,26.0,183.62,183.55,11.60822109]
[1752824109971,11.60822109,183.63,183.57,11.60822109]
[1752824110293,0.66,183.65,183.57,0.47]
[1752824110596,11.60822109,183.66,183.6,11.60822109]
[1752824110976,11.60822109,183.65,183.59,11.60822109]
[1752824111191,11.66822109,183.66,183.6,11.60822109]
[1752824111493,0.06,183.66,183.61,40.74822109]
[1752824111668,0.06,183.66,183.61,29.14]
[1752824111870,11.60822109,183.65,183.61,29.14]
[1752824112068,11.60822109,183.64,183.61,29.14]
[1752824112301,12.26822109,183.65,183.61,29.14]
[1752824113076,11.60822109,183.63,183.56,17.05594652]
[1752824113299,11.60822109,183.61,183.57,29.14]
[1752824113494,11.60822109,183.58,183.55,6.4177]
[1752824113797,11.60822109,183.56,183.53,29.14]
[1752824113999,11.60822109,183.55,183.53,29.14]
[1752824114375,12.26822109,183.57,183.53,29.14]
[1752824114680,0.66,183.62,183.54,12.07822109]
[1752824114994,11.60822109,183.64,183.58,11.60822109]
[1752824115187,11.60822109,183.65,183.59,11.60822109]
[1752824115386,11.60822109,183.64,183.58,29.61]
[1752824115693,11.60822109,183.63,183.58,29.14]
[1752824115994,11.60822109,183.61,183.58,29.14]
[1752824116201,17.71425093,183.62,183.58,29.14]
[1752824116403,11.60822109,183.61,183.58,29.14]
[1752824116581,11.60822109,183.6,183.57,29.14]
[1752824116905,11.60822109,183.59,183.57,29.14]
[1752824117277,12.26822109,183.58,183.52,1.5159]
[1752824117582,12.26822109,183.58,183.51,11.98052669]
[1752824117583,11.60822109,183.55,183.51,11.98052669]
[1752824118197,11.60822109,183.55,183.51,6.53130001]
[1752824118578,11.60822109,183.55,183.51,11.98058027]
[1752824119298,11.60822109,183.54,183.51,6.53130001]
[1752824119496,11.60822109,183.53,183.51,1e-08]
[1752824119800,11.60822109,183.52,183.51,1e-08]
[1752824119995,12.26822109,183.52,183.51,1e-08]
[1752824120198,17.71721847,183.52,183.51,1e-08]
[1752824121475,5.4475325,183.57,183.51,1e-08]
[1752824121677,26.0,183.58,183.52,29.14]
[1752824121997,16.78468397,183.58,183.53,17.05678839]
[1752824122202,5.44514021,183.65,183.57,11.60822109]
[1752824122400,17.0533613,183.65,183.58,40.74822109]
[1752824122585,5.44514021,183.65,183.59,11.60822109]
[1752824122899,5.44514021,183.65,183.58,29.14]
[1752824123099,5.504877,183.66,183.59,12.07822109]
[1752824123291,0.06,183.66,183.62,11.60822109]
[1752824123485,0.06,183.66,183.63,40.74822109]
[1752824125104,0.06,183.66,183.63,29.14]
[1752824125299,11.60822109,183.64,183.59,29.14]
[1752824125606,11.60822109,183.61,183.59,29.14]
[1752824125787,11.60822109,183.62,183.59,29.14]
[1752824125993,11.60822109,183.64,183.59,29.14]
[1752824126190,0.06,183.66,183.6,17.05484418]
[1752824126509,0.06,183.66,183.63,11.60822109]
[1752824126683,0.06,183.66,183.64,29.14]
[1752824127907,12.29822109,183.65,183.64,29.14]
[1752824128110,12.29822109,183.65,183.58,17.05514723]
[1752824128404,11.60822109,183.63,183.61,29.14]
[1752824128580,12.29822109,183.62,183.59,29.14]
[1752824128785,31.44543672,183.64,183.59,29.14]
[1752824128786,11.60822109,183.6,183.59,29.14]
[1752824128987,17.36269106,183.6,183.59,29.14]
[1752824129692,17.36269106,183.6,183.56,29.12]
[1752824129890,17.36269106,183.57,183.56,29.12]
[1752824130303,23.50020427,183.57,183.52,29.12]
[1752824130610,17.36269106,183.54,183.52,29.12]
[1752824131210,17.36269106,183.53,183.52,29.12]
[1752824131587,18.05269106,183.53,183.51,1e-08]
[1752824131784,18.05269106,183.52,183.51,1e-08]
[1752824132003,18.05269106,183.52,183.49,0.03]
[1752824132004,26.0,183.5,183.49,0.03]
[1752824132206,26.0,183.46,183.45,0.03]
[1752824132511,16.78468397,183.41,183.4,0.2]
[1752824132713,34.14737503,183.41,183.4,0.2]
[1752824132893,34.83737503,183.41,183.4,0.2]
[1752824133300,17.47468397,183.41,183.4,0.2]
[1752824133489,34.83737503,183.41,183.4,0.2]
[1752824134394,29.57320383,183.54,183.4,0.2]
[1752824134581,17.36269106,183.47,183.41,17.36269106]
[1752824134785,17.36269106,183.47,183.41,18.06269106]
[1752824135012,0.69,183.51,183.43,17.36269106]
[1752824135319,17.36269106,183.48,183.43,6.6569]
[1752824135485,17.36269106,183.48,183.44,29.14]
[1752824135685,0.69,183.51,183.44,29.14]
[1752824135686,17.36269106,183.47,183.44,29.14]
[1752824135887,17.36269106,183.48,183.44,29.14]
[1752824136111,16.78468397,183.5,183.44,29.14]
[1752824136112,17.36269106,183.5,183.44,29.14]
[1752824136310,16.78468397,183.53,183.47,17.36269106]
[1752824136512,17.36269106,183.53,183.47,17.36269106]
[1752824136683,17.36269106,183.51,183.45,23.51371104]
[1752824137106,17.36269106,183.5,183.44,34.59132649]
[1752824137285,17.36269106,183.48,183.44,29.14]
[1752824137684,17.36269106,183.47,183.44,29.14]
[1752824138287,17.36269106,183.46,183.43,6.6569]
[1752824138489,17.36269106,183.45,183.41,29.14]
[1752824139399,17.36269106,183.42,183.41,29.14]
[1752824139595,17.36269106,183.42,183.4,0.2]
[1752824139907,0.69,183.44,183.4,0.2]
[1752824140087,17.36269106,183.44,183.4,0.2]
[1752824140284,17.36269106,183.46,183.4,5.65241727]
[1752824140600,22.23528926,183.47,183.4,0.2]
[1752824140799,17.36269106,183.44,183.4,0.2]
[1752824141103,17.36269106,183.43,183.4,0.2]
[1752824141313,17.36269106,183.45,183.4,0.2]
[1752824141698,17.36269106,183.45,183.4,5.65253928]
[1752824141886,17.36269106,183.44,183.4,0.2]
[1752824142102,17.36269106,183.45,183.4,0.2]
[1752824142304,17.36269106,183.43,183.4,0.2]
[1752824142617,17.36269106,183.42,183.4,0.2]
[1752824143310,17.36269106,183.43,183.4,0.2]
[1752824144407,17.36269106,183.42,183.4,0.2]
[1752824145508,17.36269106,183.43,183.4,0.2]
[1752824145929,17.36269106,183.41,183.4,0.2]
[1752824146121,34.83737503,183.41,183.4,0.2]
[1752824146520,40.28964044,183.41,183.4,0.2]
[1752824146720,17.36269106,183.42,183.4,0.2]
[1752824146913,0.69,183.44,183.4,0.2]
[1752824147118,17.36269106,183.44,183.4,0.2]
[1752824147332,29.83,183.46,183.4,0.2]
[1752824147529,18.05269106,183.46,183.4,5.65249641]
[1752824147740,6.14082316,183.46,183.4,5.65249641]
[1752824147918,6.14082316,183.46,183.4,0.2]
[1752824147919,17.36269106,183.42,183.4,0.2]
[1752824148530,22.8144221,183.43,183.4,0.2]
[1752824148709,17.36269106,183.42,183.4,0.2]
[1752824148911,17.36269106,183.41,183.4,0.2]
[1752824149108,18.05269106,183.41,183.4,0.2]
[1752824150631,5.45164822,183.44,183.4,0.2]
[1752824150835,22.23575842,183.46,183.4,0.9]
[1752824151037,17.36269106,183.5,183.43,17.36269106]
[1752824151212,17.36269106,183.51,183.45,17.36269106]
[1752824151415,30.0,183.46,183.45,17.36269106]
[1752824151733,30.66,183.46,183.41,26.0]
[1752824151929,47.36269106,183.46,183.4,23.01525048]
[1752824152322,47.36269106,183.45,183.4,5.65255942]
[1752824152641,52.81380476,183.45,183.4,0.9]
[1752824152819,52.81380476,183.45,183.4,0.2]
[1752824153022,17.36269106,183.42,183.4,0.2]
[1752824153736,17.36269106,183.41,183.4,0.2]
[1752824154126,18.02269106,183.42,183.4,0.2]
[1752824154337,17.36269106,183.42,183.4,0.2]
[1752824154724,26.0,183.46,183.4,0.2]
[1752824155040,17.42269106,183.43,183.4,0.2]
[1752824155837,0.06,183.43,183.4,0.2]
[1752824156727,0.06,183.43,183.41,18.06269106]
[1752824157538,0.06,183.43,183.41,0.7]
[1752824157738,0.06,183.43,183.41,18.06269106]
[1752824157925,0.06,183.43,183.42,18.06269106]
[1752824158631,0.06,183.43,183.42,23.51465922]
[1752824159836,0.06,183.43,183.42,57.75715922]
[1752824160021,1e-08,183.43,183.42,220.94184319]
[1752824160224,0.06,183.51,183.45,26.0]
[1752824160429,0.06,183.51,183.5,17.36269106]
[1752824160630,30.06,183.51,183.5,5.44959128]
[1752824160858,30.06,183.51,183.45,172.4]
[1752824160859,48.08269106,183.51,183.45,163.76269106]
[1752824161036,36.16943428,183.51,183.45,34.59107067]
[1752824161240,17.36269106,183.48,183.43,6.334]
[1752824161425,42.78468397,183.48,183.4,0.2]
[1752824161630,0.66,183.47,183.4,29.34]
[1752824161833,17.36269106,183.42,183.4,0.2]
[1752824162050,18.02269106,183.42,183.4,0.2]
[1752824162246,17.36269106,183.41,183.4,0.2]
[1752824162741,40.25964044,183.41,183.4,0.2]
[1752824162943,66.25964044,183.41,183.4,0.2]
[1752824164333,26.0,183.41,183.4,0.2]
[1752824164545,31.45226541,183.41,183.4,0.2]
[1752824165040,48.81495647,183.41,183.4,0.2]
[1752824165245,66.25964044,183.41,183.4,0.2]
[1752824166555,40.25964044,183.41,183.4,1e-08]
[1752824166848,42.78468397,183.33,183.32,0.2]
[1752824167151,60.14737503,183.33,183.32,0.2]
[1752824167344,60.80737503,183.33,183.32,0.2]
[1752824167541,34.80737503,183.33,183.32,0.2]
[1752824168047,16.78468397,183.35,183.32,0.2]
[1752824168241,17.36269106,183.33,183.32,0.2]
[1752824168755,23.47733568,183.33,183.32,0.2]
[1752824168939,40.26201965,183.33,183.32,0.2]
[1752824170028,69.40201965,183.33,183.32,0.2]
[1752824170953,95.40201965,183.33,183.32,0.2]
[1752824171455,69.40201965,183.33,183.32,0.2]
[1752824172647,34.14737503,183.33,183.32,0.2]
[1752824172950,17.36269106,183.35,183.32,0.2]
[1752824173147,16.78468397,183.34,183.32,0.2]
[1752824173331,17.36269106,183.34,183.32,0.2]
[1752824173731,18.02269106,183.34,183.32,0.2]
[1752824173933,34.80737503,183.33,183.32,0.2]
[1752824174744,16.78468397,183.33,183.32,0.2]
[1752824174945,16.78468397,183.35,183.32,0.2]
[1752824175148,17.36269106,183.34,183.32,0.2]
[1752824175346,61.25379566,183.36,183.32,0.2]
[1752824175347,17.36269106,183.36,183.32,0.2]
[1752824175558,16.78468397,183.37,183.33,17.36269106]
[1752824175878,16.78468397,183.37,183.32,23.71757989]
[1752824176442,16.78468397,183.38,183.32,23.71757989]
[1752824176654,16.78468397,183.36,183.32,0.2]
[1752824176837,34.14737503,183.33,183.32,0.2]
[1752824177245,34.80737503,183.33,183.32,0.2]
[1752824177555,60.80737503,183.33,183.32,0.2]
[1752824178039,34.80737503,183.33,183.32,0.2]
[1752824178240,34.80737503,183.33,183.32,1e-08]
[1752824178640,40.26201965,183.33,183.32,1e-08]
[1752824180851,70.26201965,183.33,183.32,1e-08]
[1752824183948,52.89932859,183.33,183.32,1e-08]
[1752824184153,70.26201965,183.33,183.32,1e-08]
[1752824184663,70.26201965,183.33,183.28,1e-08]
[1752824184868,42.78468397,183.29,183.28,1e-08]
[1752824185068,94.76321004,183.29,183.28,1e-08]
[1752824185457,48.96051898,183.29,183.28,1e-08]
[1752824185657,94.76321004,183.29,183.28,1e-08]
[1752824185878,125.48321004,183.29,183.28,1e-08]
[1752824186049,139.12279757,183.29,183.22,0.2]
[1752824186249,17.36269106,183.23,183.22,0.2]
[1752824186958,60.14737503,183.26,183.22,0.2]
[1752824187169,16.78468397,183.28,183.22,18.25269106]
[1752824187475,34.14737503,183.28,183.22,18.25269106]
[1752824187990,56.0,183.29,183.23,0.69]
[1752824188151,14.3002,183.29,183.28,6.3807]
[1752824188476,0.72,183.43,183.31,26.0]
[1752824188647,11.94447977,183.47,183.39,17.36269106]
[1752824188844,17.36269106,183.46,183.4,17.36269106]
[1752824189078,17.39522149,183.47,183.4,22.81512862]
[1752824189254,29.30717083,183.47,183.41,17.36269106]
[1752824189451,17.39497212,183.47,183.38,31.45290488]
[1752824189663,34.75766318,183.47,183.38,31.45290488]
[1752824189972,17.36269106,183.46,183.4,17.36269106]
[1752824190148,17.36269106,183.44,183.32,49.37468397]
[1752824190355,16.78468397,183.43,183.36,26.0]
[1752824190580,0.72,183.44,183.35,26.0]
[1752824190911,11.94447977,183.47,183.43,17.36269106]
[1752824191051,11.94447977,183.47,183.39,26.0]
[1752824191052,11.94447977,183.47,183.44,17.36269106]
[1752824191251,11.94447977,183.47,183.4,26.0]
[1752824191577,11.94447977,183.47,183.43,17.36269106]
[1752824191770,15.21962941,183.48,183.46,17.36269106]
[1752824192082,15.21962941,183.48,183.45,17.36269106]
[1752824192574,15.21962941,183.48,183.46,17.36269106]
[1752824193447,15.21962941,183.48,183.47,17.36269106]
[1752824194362,20.66989501,183.48,183.43,17.36269106]
[1752824194562,21.38989501,183.48,183.41,17.36269106]
[1752824194773,15.21962941,183.48,183.44,17.36269106]
[1752824195180,15.21962941,183.48,183.4,61.9609]
[1752824195384,15.21962941,183.48,183.44,17.36269106]
[1752824195587,15.21962941,183.48,183.45,17.36269106]
[1752824195777,15.21962941,183.48,183.47,17.36269106]
[1752824195968,15.21962941,183.48,183.44,26.0]
[1752824196171,15.21962941,183.48,183.44,43.36269106]
[1752824196480,15.21962941,183.48,183.45,17.36269106]
[1752824196893,15.21962941,183.48,183.47,17.36269106]
[1752824198097,15.21962941,183.48,183.44,5.45137374]
[1752824198268,15.21962941,183.48,183.46,17.36269106]
[1752824198790,15.21962941,183.48,183.44,5.45137374]
[1752824198791,20.66983913,183.48,183.44,17.36269106]
[1752824198993,17.36269106,183.45,183.39,17.36269106]
[1752824199162,22.8140648,183.44,183.38,47.00269106]
[1752824199366,5.45137374,183.44,183.38,29.64]
[1752824199572,17.36269106,183.41,183.38,29.64]
[1752824199777,17.36269106,183.42,183.38,29.64]
[1752824200484,5.45137374,183.44,183.39,17.36269106]
[1752824200784,22.8140648,183.44,183.38,47.00269106]
[1752824200980,17.36269106,183.41,183.38,29.64]
[1752824201187,5.4525627,183.4,183.38,29.64]
[1752824201366,23.53525376,183.4,183.38,29.64]
[1752824201685,18.08269106,183.39,183.33,47.00269106]
[1752824201893,18.08269106,183.39,183.33,55.64]
[1752824202191,17.36269106,183.38,183.33,29.64]
[1752824202581,17.36269106,183.35,183.33,29.64]
[1752824202793,18.08269106,183.34,183.29,29.65]
[1752824203092,23.53729103,183.34,183.29,29.65]
[1752824203675,0.72,183.34,183.29,47.01269106]
[1752824203878,18.86829106,183.38,183.32,17.36269106]
[1752824204063,17.36269106,183.34,183.29,0.03]
[1752824204265,17.36269106,183.33,183.29,0.03]
[1752824204470,17.36269106,183.37,183.31,17.36269106]